bitfinex-derivatives/quotes_SOLF0:USTF0_20241215
["timestamp","ask_amount","ask_price","bid_price","bid_amount"]
[1734247335561,2.06,218.08,217.99,12.05507836]
[1734247335869,2.06,218.08,217.99,14.34907836]
[1734247336365,2.06,218.08,217.99,12.28907836]
[1734247338060,2.2934,218.05,218.0,2.2939]
[1734247338360,2.06,218.08,217.99,9.99507836]
[1734247338563,2.06,218.08,218.0,2.06]
[1734247338861,2.2929,218.09,218.0,2.06]
[1734247339269,2.2929,218.09,218.04,2.2934]
[1734247340567,2.06,218.11,218.0,2.06]
[1734247340766,2.2931,218.08,218.02,2.2936]
[1734247341169,2.2931,218.08,218.0,2.06]
[1734247341366,2.06,218.11,218.05,2.2933]
[1734247341367,2.2928,218.11,218.05,2.2933]
[1734247341559,2.06,218.12,218.05,9.99507836]
[1734247341960,2.06,218.12,218.02,9.99507836]
[1734247342363,2.2929,218.09,218.04,2.2934]
[1734247342562,2.06,218.12,218.02,9.99507836]
[1734247343271,2.06,218.12,218.0,2.06]
[1734247343272,2.2929,218.1,218.06,6.39806602]
[1734247345869,2.2931,218.08,218.04,6.39806602]
[1734247346072,6.39806602,218.1,218.04,6.39806602]
[1734247346370,6.39806602,218.1,218.02,6.39806602]
[1734247346573,2.2934,218.05,218.02,6.39806602]
[1734247347474,2.2932,218.07,218.02,6.39806602]
[1734247347972,2.06,218.08,218.02,6.39806602]
[1734247348574,2.2933,218.06,218.02,6.39806602]
[1734247350670,6.39806602,218.11,218.04,6.39806602]
[1734247350866,2.06,218.14,218.08,6.39806602]
[1734247351066,6.39806602,218.16,218.08,6.39806602]
[1734247351270,2.06,218.15,218.08,6.39806602]
[1734247351470,2.06,218.15,218.1,6.39806602]
[1734247351867,6.39806602,218.16,218.1,6.39806602]
[1734247352073,8.45806602,218.16,218.1,6.39806602]
[1734247352766,8.45806602,218.16,218.08,8.69106602]
[1734247353177,6.39806602,218.12,218.04,2.9548]
[1734247353478,2.06,218.11,218.01,2.06]
[1734247353678,2.06,218.11,218.04,6.39806602]
[1734247354078,6.39806602,218.1,218.04,6.39806602]
[1734247354470,2.2932,218.07,218.04,6.39806602]
[1734247354872,6.39806602,218.1,217.96,4.3768]
[1734247355074,2.2936,218.03,217.96,4.3768]
[1734247355278,8.45806602,218.06,217.99,6.39806602]
[1734247355481,2.06,218.05,217.99,6.39806602]
[1734247355679,2.2935,218.04,217.99,6.39806602]
[1734247355973,2.06,218.05,217.99,6.39806602]
[1734247356476,2.2938,218.01,217.97,6.39806602]
[1734247357275,2.2938,218.01,217.96,4.3768]
[1734247357875,2.06,218.05,217.96,1.5271]
[1734247358071,2.06,218.05,217.93,2.2945]
[1734247358281,2.06,218.05,217.95,5.54541614]
[1734247359581,2.294,217.99,217.95,5.54541614]
[1734247360083,2.2941,217.98,217.95,5.54541614]
[1734247361481,2.294,217.99,217.95,5.54541614]
[1734247362580,2.06,218.01,217.95,5.54541614]
[1734247362982,4.3538,218.01,217.95,7.83981614]
[1734247363182,2.06,218.01,217.95,5.54541614]
[1734247364588,4.3538,218.01,217.96,2.2943]
[1734247365379,4.3538,218.01,217.95,5.54541614]
[1734247366082,4.3538,218.01,217.95,7.83981614]
[1734247367284,2.06,218.01,217.95,7.83981614]
[1734247367980,2.294,217.99,217.95,5.54541614]
[1734247368186,2.06,218.01,217.95,5.54541614]
[1734247369688,2.2941,217.98,217.95,5.54541614]
[1734247370783,2.04,217.97,217.89,4.5321]
[1734247371080,2.04,217.96,217.89,4.5321]
[1734247371288,2.2947,217.92,217.86,2.2953]
[1734247371678,2.2947,217.92,217.84,12.04539988]
[1734247371877,2.2947,217.92,217.89,5.55758512]
[1734247373679,1.5005,218.09,217.9,10.00539988]
[1734247373887,10.00539988,218.06,217.93,10.00539988]
[1734247374577,2.2937,218.03,217.93,2.2946]
[1734247374783,2.04,218.02,217.91,1.4107]
[1734247376287,2.04,218.02,217.91,3.7055]
[1734247377079,2.2943,217.97,217.91,3.7055]
[1734247377279,4.3343,217.97,217.92,6.40614034]
[1734247377484,2.04,217.97,217.92,6.40614034]
[1734247377983,2.04,217.97,217.92,8.70084034]
[1734247379187,4.3342,217.97,217.92,8.70084034]
[1734247381091,2.04,217.97,217.9,1.4522]
[1734247381287,2.04,217.97,217.89,5.55758512]
[1734247381288,6.40614034,217.96,217.89,5.55758512]
[1734247381591,2.2949,217.91,217.88,6.40614034]
[1734247381782,2.04,217.93,217.88,6.40614034]
[1734247382191,2.2947,217.92,217.88,6.40614034]
[1734247382693,2.2947,217.92,217.88,8.70124034]
[1734247382991,2.04,217.93,217.9,6.40614034]
[1734247383389,2.04,217.93,217.9,8.70104034]
[1734247386085,2.04,217.93,217.88,5.63587123]
[1734247386285,4.3346,217.93,217.89,6.40614034]
[1734247387898,4.3346,217.93,217.89,8.70114034]
[1734247388192,2.04,217.93,217.89,8.70114034]
[1734247388394,2.04,217.93,217.88,5.63587123]
[1734247388395,2.04,217.97,217.91,6.40614034]
[1734247388692,2.04,217.97,217.93,6.40614034]
[1734247389296,2.2941,217.98,217.93,6.40614034]
[1734247389598,2.04,218.0,217.95,6.40614034]
[1734247389794,2.2941,217.98,217.95,6.40614034]
[1734247390891,2.04,217.99,217.95,6.40614034]
[1734247391095,4.334,217.99,217.95,8.70054034]
[1734247391794,4.334,217.99,217.95,6.40614034]
[1734247391990,2.04,217.99,217.95,6.40614034]
[1734247392197,1.5005,218.09,217.97,6.40614034]
[1734247392399,6.40614034,218.07,217.99,8.70014034]
[1734247392595,2.04,218.06,217.99,6.40614034]
[1734247393700,2.2936,218.03,217.99,6.40614034]
[1734247394299,6.40614034,218.07,217.99,6.40614034]
[1734247394596,2.04,218.06,218.01,6.40614034]
[1734247395099,2.04,218.06,218.01,8.69994034]
[1734247395698,2.04,218.06,218.03,6.40614034]
[1734247396298,4.3334,218.06,218.01,6.40614034]
[1734247396902,2.2934,218.06,218.01,6.40614034]
[1734247397103,4.3334,218.06,218.01,6.40614034]
[1734247399501,2.2934,218.05,218.0,2.2938]
[1734247399804,2.2934,218.05,218.01,6.40614034]
[1734247400806,2.04,218.06,218.01,8.69984034]
[1734247401506,54.10756464,218.13,218.05,6.40614034]
[1734247401803,54.10756464,218.13,218.07,6.40614034]
[1734247401999,2.2924,218.14,218.09,6.40614034]
[1734247402199,2.04,218.13,218.09,6.40614034]
[1734247402401,2.04,218.14,218.09,6.40614034]
[1734247402598,2.2927,218.12,218.09,6.40614034]
[1734247403200,2.2932,218.07,218.02,5.59061911]
[1734247403401,2.2932,218.07,218.02,11.99675945]
[1734247404708,2.2932,218.07,218.02,14.29045945]
[1734247406810,2.04,218.08,218.02,11.99675945]
[1734247407015,2.2933,218.06,218.02,11.99675945]
[1734247407616,2.04,218.08,217.92,4.3685]
[1734247407617,8.44614034,218.08,217.92,4.3685]
[1734247407809,8.44614034,218.08,217.99,6.40614034]
[1734247408211,8.44614034,218.08,218.01,6.40614034]
[1734247409213,2.2934,218.05,218.01,6.40614034]
[1734247410316,2.04,218.08,218.03,6.40614034]
[1734247410317,2.2932,218.07,218.03,6.40614034]
[1734247412523,2.2932,218.07,218.05,6.40614034]
[1734247412719,2.04,218.08,218.05,6.40614034]
[1734247416623,2.2928,218.11,218.07,6.40614034]
[1734247416921,2.04,218.13,218.09,6.40614034]
[1734247417419,2.2927,218.12,218.09,6.40614034]
[1734247417924,2.2927,218.12,218.07,2.2931]
[1734247418123,2.2927,218.12,218.09,6.40614034]
[1734247422725,1.5541,218.24,218.15,2.2923]
[1734247422926,2.04,218.23,218.16,6.40614034]
[1734247424127,2.2918,218.2,218.16,6.40614034]
[1734247424627,2.04,218.19,218.11,4.341]
[1734247424828,6.40614034,218.17,218.0,5.39897052]
[1734247425025,6.40614034,218.08,218.0,5.39897052]
[1734247425230,2.2934,218.05,218.0,5.39897052]
[1734247425431,2.04,218.07,218.01,6.40614034]
[1734247426226,4.3332,218.07,218.01,6.40614034]
[1734247426629,4.3332,218.07,218.0,7.69287052]
[1734247426630,4.3332,218.07,218.03,6.40614034]
[1734247426821,2.04,218.06,218.03,6.40614034]
[1734247427022,2.04,218.05,218.03,6.40614034]
[1734247429929,2.04,218.05,218.01,6.40614034]
[1734247430133,4.3334,218.05,218.01,6.40614034]
[1734247431336,2.04,218.05,218.01,6.40614034]
[1734247431628,2.04,218.05,218.03,6.40614034]
[1734247432633,2.2934,218.05,218.03,6.40614034]
[1734247433228,2.2934,218.05,218.0,5.39897052]
[1734247433229,2.2936,218.03,218.01,6.40614034]
[1734247433434,2.2936,218.03,218.0,5.39897052]
[1734247433737,2.294,217.99,217.96,10.72474034]
[1734247433933,2.294,217.99,217.96,9.28424034]
[1734247434532,2.1,218.01,217.96,9.28424034]
[1734247434728,2.1,218.01,217.94,6.40614034]
[1734247434931,2.1,218.01,217.92,6.40614034]
[1734247434932,6.40614034,218.0,217.92,6.40614034]
[1734247435127,6.40614034,217.98,217.86,2.2953]
[1734247435332,2.1,217.97,217.89,6.40614034]
[1734247435534,2.1,217.97,217.86,2.2953]
[1734247435732,2.1,217.97,217.89,6.40614034]
[1734247435930,2.2946,217.94,217.89,6.40614034]
[1734247436133,2.1,217.93,217.89,6.40614034]
[1734247436834,2.1,217.93,217.91,5.57690507]
[1734247437941,2.1,217.96,217.91,5.57690507]
[1734247438830,2.1,217.96,217.91,7.87170507]
[1734247439337,2.2942,217.97,217.91,7.87170507]
[1734247439529,2.1,217.96,217.91,7.87170507]
[1734247442130,10.01180852,218.06,217.94,2.2945]
[1734247442336,2.1,218.05,217.94,2.2945]
[1734247442527,2.1,218.05,217.93,10.01180852]
[1734247442732,55.69660211,218.1,217.95,2.2944]
[1734247442932,10.01180852,218.08,217.93,10.01180852]
[1734247443235,10.01180852,218.08,217.94,1.4201]
[1734247444243,10.01180852,218.08,217.96,2.2943]
[1734247444739,2.2934,218.05,217.96,2.2943]
[1734247444939,2.1,218.04,217.96,2.2943]
[1734247445135,2.1,218.03,217.96,2.2943]
[1734247445335,2.1,218.02,217.96,2.2943]
[1734247445837,2.1,218.11,218.0,10.01180852]
[1734247446135,2.1,218.1,218.0,10.01180852]
[1734247446444,2.2928,218.11,218.05,2.2933]
[1734247446643,2.2928,218.11,218.02,1.5526]
[1734247447542,2.2928,218.1,218.04,2.2935]
[1734247448039,2.2932,218.07,218.02,3.8462]
[1734247448341,2.2932,218.07,218.02,1.5526]
[1734247448940,2.1,218.1,218.01,2.9907]
[1734247449142,2.2933,218.06,218.01,5.2845]
[1734247449743,2.2931,218.08,218.02,2.2937]
[1734247449943,2.2931,218.08,218.01,2.9907]
[1734247451640,2.2931,218.08,218.03,2.2936]
[1734247451836,2.2933,218.06,218.01,2.9907]
[1734247452046,12.11180852,218.1,217.98,2.1]
[1734247452347,12.11180852,218.1,217.98,2.294]
[1734247452743,2.2935,218.04,217.98,2.294]
[1734247452944,2.1,218.06,217.97,10.01180852]
[1734247453147,2.1,218.05,217.96,2.2942]
[1734247453345,2.1,218.04,217.96,2.2942]
[1734247453748,2.1,218.04,217.94,12.11180852]
[1734247453949,2.1,218.04,217.99,2.294]
[1734247454840,2.1,218.04,217.97,10.01180852]
[1734247455344,2.1,218.08,217.97,10.01180852]
[1734247455741,2.2933,218.06,218.01,2.2937]
[1734247455948,2.1,218.08,217.97,10.01180852]
[1734247456147,10.01180852,218.07,217.93,3.0246]
[1734247456341,10.01180852,218.04,217.93,3.0246]
[1734247456550,2.1,218.03,217.92,1.5526]
[1734247456748,2.2944,217.95,217.92,1.5526]
[1734247456953,2.2944,217.95,217.91,5.57690507]
[1734247457351,2.1,217.98,217.86,2.2953]
[1734247457352,2.2949,217.91,217.86,2.2953]
[1734247457848,2.1,217.94,217.88,5.57383436]
[1734247459851,4.3946,217.94,217.88,7.86893436]
[1734247460650,2.1,217.94,217.88,5.57383436]
[1734247461452,2.2947,217.92,217.88,5.57383436]
[1734247463053,4.3946,217.94,217.88,5.57383436]
[1734247464558,2.1,217.94,217.89,2.295]
[1734247465258,2.14,217.95,217.89,2.295]
[1734247465654,4.4344,217.95,217.89,2.295]
[1734247466854,2.2945,217.94,217.89,2.295]
[1734247469961,2.14,217.95,217.88,5.57383436]
[1734247470161,2.14,217.95,217.91,2.2948]
[1734247472655,4.4344,217.95,217.91,2.2948]
[1734247473055,4.4344,217.95,217.88,5.57383436]
[1734247473056,2.2946,217.94,217.89,2.295]
[1734247473268,2.14,217.95,217.88,5.57383436]
[1734247473661,2.14,217.95,217.84,2.9667]
[1734247473862,12.15180852,217.95,217.84,1.4857]
[1734247474364,12.15180852,217.95,217.84,3.7813]
[1734247475061,2.295,217.9,217.84,3.7813]
[1734247475269,2.295,217.9,217.85,5.54045664]
[1734247475270,2.14,217.9,217.85,5.54045664]
[1734247476067,2.14,217.9,217.78,10.01180852]
[1734247476372,2.14,217.9,217.8,2.296]
[1734247476978,2.2952,217.88,217.82,2.2957]
[1734247477276,2.14,217.9,217.82,5.42858945]
[1734247478176,4.4351,217.89,217.83,2.2956]
[1734247478777,2.2952,217.88,217.83,2.2956]
[1734247480677,2.2953,217.87,217.82,7.72438945]
[1734247480874,2.14,217.89,217.82,5.42858945]
[1734247481072,2.2953,217.87,217.82,5.42858945]
[1734247481376,2.14,217.89,217.82,5.42858945]
[1734247482577,2.2954,217.86,217.82,5.42858945]
[1734247482973,2.14,217.89,217.82,5.42858945]
[1734247483478,2.2955,217.85,217.82,5.42858945]
[1734247483680,12.15180852,217.89,217.76,2.14]
[1734247483877,12.15180852,217.89,217.75,10.01180852]
[1734247484078,2.2957,217.83,217.78,2.2962]
[1734247484680,2.2957,217.83,217.81,5.3772119]
[1734247485075,4.4356,217.84,217.81,5.3772119]
[1734247486083,2.14,217.84,217.81,5.3772119]
[1734247486380,2.14,217.87,217.81,5.3772119]
[1734247486777,4.4353,217.87,217.82,2.2957]
[1734247487985,2.2953,217.87,217.82,2.2957]
[1734247489982,2.14,217.88,217.82,2.2957]
[1734247490289,2.2954,217.86,217.78,10.01180852]
[1734247490489,2.2954,217.86,217.81,7.7084004]
[1734247492786,5.6472993,217.95,217.81,7.7084004]
[1734247492787,5.6472993,217.95,217.81,5.4125004]
[1734247492983,12.11180852,217.94,217.81,5.4125004]
[1734247493180,2.2952,217.89,217.84,8.70637315]
[1734247494287,2.2952,217.89,217.84,2.2955]
[1734247496391,2.2949,217.91,217.84,6.41087315]
[1734247496589,2.1,217.92,217.84,6.41087315]
[1734247496891,2.1,217.92,217.86,6.41087315]
[1734247497090,6.41087315,217.9,217.82,2.9385]
[1734247497586,8.70587315,217.9,217.84,2.2955]
[1734247497892,6.41087315,217.9,217.84,2.2955]
[1734247499688,2.2952,217.88,217.84,2.2955]
[1734247502889,1.5001,217.96,217.86,6.41087315]
[1734247503091,8.51087315,217.95,217.86,6.41087315]
[1734247504591,2.2945,217.94,217.89,2.2949]
[1734247507401,2.2945,217.94,217.86,6.41087315]
[1734247507601,2.2945,217.94,217.9,2.2949]
[1734247508300,4.3944,217.95,217.91,2.2948]
[1734247508498,10.80527315,217.95,217.91,2.2948]
[1734247508998,8.70527315,217.95,217.91,2.2948]
[1734247509200,8.70527315,217.95,217.88,6.41087315]
[1734247509502,6.41087315,217.95,217.88,6.41087315]
[1734247510301,6.41087315,217.95,217.9,2.2949]
[1734247511001,8.70527315,217.95,217.9,2.2949]
[1734247511403,6.41087315,217.95,217.88,6.41087315]
[1734247511602,2.2946,217.94,217.88,8.70597315]
[1734247512305,2.2946,217.94,217.89,2.295]
[1734247512495,2.2946,217.94,217.88,6.41087315]
[1734247512695,6.41087315,217.89,217.81,5.4125004]
[1734247512897,6.41087315,217.84,217.74,1.82658]
[1734247513205,8.51087315,217.84,217.76,6.41087315]
[1734247514606,2.2958,217.82,217.76,8.70717315]
[1734247514802,2.2958,217.82,217.78,5.49096981]
[1734247517800,2.2961,217.8,217.78,5.49096981]
[1734247518003,8.51087315,217.8,217.74,1.4976]
[1734247518201,8.51087315,217.8,217.72,1.4886]
[1734247518404,8.51087315,217.8,217.72,7.89947315]
[1734247519102,8.51087315,217.8,217.72,6.41087315]
[1734247519311,6.41087315,217.78,217.73,5.43659651]
[1734247520607,2.2963,217.77,217.73,5.43659651]
[1734247521002,8.51087315,217.76,217.69,0.40522]
[1734247521202,2.2968,217.73,217.69,0.40522]
[1734247521401,2.08,217.72,217.69,0.40522]
[1734247522009,2.08,217.72,217.7,5.62041036]
[1734247522906,2.08,217.72,217.69,0.40522]
[1734247524407,2.297,217.71,217.69,0.40522]
[1734247524602,2.08,217.72,217.69,0.40522]
[1734247524603,8.49087315,217.72,217.69,0.40522]
[1734247525005,2.2971,217.7,217.69,0.40522]
[1734247525405,2.2971,217.7,217.6,27.15207588]
[1734247525406,8.49087315,217.72,217.41,6.36479451]
[1734247525614,15.2238,217.87,217.66,6.41087315]
[1734247525814,6.41087315,217.75,217.68,6.41087315]
[1734247526114,2.08,217.74,217.68,6.41087315]
[1734247527010,8.49087315,217.74,217.68,6.41087315]
[1734247527211,2.2968,217.73,217.68,8.70817315]
[1734247527405,2.08,217.72,217.68,8.70817315]
[1734247527604,2.08,217.72,217.68,6.41087315]
[1734247527914,2.08,217.72,217.69,2.2971]
[1734247529611,2.08,217.72,217.66,5.3826438]
[1734247529809,2.08,217.72,217.66,11.79351695]
[1734247530415,2.08,217.72,217.67,2.2973]
[1734247532012,2.08,217.72,217.68,2.2972]
[1734247533910,6.41087315,217.7,217.52,6.6067]
[1734247534217,2.08,217.69,217.66,6.41087315]
[1734247535014,6.41087315,217.73,217.66,8.70827315]
[1734247535221,2.08,217.72,217.66,6.41087315]
[1734247535516,4.3769,217.72,217.66,6.41087315]
[1734247535816,2.08,217.72,217.66,6.41087315]
[1734247536620,2.297,217.71,217.66,6.41087315]
[1734247537113,2.2971,217.7,217.66,6.41087315]
[1734247537714,2.2971,217.7,217.65,7.70850845]
[1734247537912,2.2971,217.7,217.65,14.1193816]
[1734247538812,2.2971,217.7,217.65,7.70850845]
[1734247539012,2.2973,217.68,217.65,5.41100845]
[1734247539220,4.3773,217.68,217.65,5.41100845]
[1734247540117,2.08,217.68,217.6,1.554]
[1734247540322,6.41087315,217.67,217.61,5.48592873]
[1734247540518,2.08,217.68,217.61,11.89680188]
[1734247540815,6.41087315,217.69,217.64,2.2977]
[1734247540816,2.08,217.67,217.64,2.2977]
[1734247541620,2.2972,217.69,217.64,2.2977]
[1734247541821,2.9513,217.85,217.66,2.2975]
[1734247542015,2.9513,217.85,217.67,6.41087315]
[1734247542016,6.41087315,217.74,217.67,6.41087315]
[1734247542217,2.08,217.73,217.67,6.41087315]
[1734247543021,6.41087315,217.72,217.65,6.41087315]
[1734247543322,6.41087315,217.72,217.61,8.97522873]
[1734247543323,6.41087315,217.68,217.61,5.48592873]
[1734247543520,2.08,217.67,217.61,5.48592873]
[1734247543822,4.3774,217.67,217.62,6.41087315]
[1734247545419,2.297,217.71,217.64,8.70847315]
[1734247545725,2.08,217.7,217.64,6.41087315]
[1734247546723,2.08,217.7,217.66,2.2974]
[1734247548229,2.08,217.71,217.67,2.2974]
[1734247549829,2.2967,217.74,217.68,2.2973]
[1734247550026,2.08,217.73,217.68,6.41087315]
[1734247550326,2.08,217.75,217.68,6.41087315]
[1734247550526,2.08,217.75,217.7,2.297]
[1734247550922,4.3765,217.75,217.7,2.297]
[1734247551329,4.3765,217.75,217.68,8.70807315]
[1734247551730,2.08,217.75,217.68,8.70807315]
[1734247551932,2.2974,217.67,217.62,8.70867315]
[1734247552130,2.1,217.68,217.62,6.41087315]
[1734247553634,2.1,217.68,217.63,2.2978]
[1734247554041,2.1,217.68,217.64,6.41087315]
[1734247554245,4.397,217.71,217.65,2.2975]
[1734247554541,2.1,217.71,217.66,6.41087315]
[1734247555036,1.4949,217.81,217.66,6.41087315]
[1734247555037,8.51087315,217.74,217.66,6.41087315]
[1734247555241,2.2967,217.73,217.68,2.2972]
[1734247555939,2.2967,217.73,217.66,8.70827315]
[1734247556341,8.51087315,217.74,217.66,8.70827315]
[1734247556536,2.2969,217.72,217.66,8.70827315]
[1734247556740,2.2969,217.72,217.67,2.2973]
[1734247557944,2.2969,217.72,217.65,2.2975]
[1734247558145,2.2969,217.72,217.65,8.70837315]
[1734247558740,2.1,217.73,217.65,6.41087315]
[1734247559445,2.1,217.73,217.67,6.41087315]
[1734247559644,2.1,217.73,217.68,2.2972]
[1734247559942,2.1,217.73,217.67,6.41087315]
[1734247560840,2.2969,217.72,217.67,6.41087315]
[1734247561841,2.297,217.71,217.64,2.2976]
[1734247562042,6.41087315,217.72,217.64,6.41087315]
[1734247562442,6.41087315,217.7,217.61,7.58592873]
[1734247562650,6.41087315,217.7,217.62,6.41087315]
[1734247562844,2.1,217.69,217.61,5.48592873]
[1734247563046,2.1,217.69,217.62,6.41087315]
[1734247563743,2.1,217.69,217.61,7.78382873]
[1734247563943,2.2974,217.68,217.61,5.48592873]
[1734247564143,2.2974,217.68,217.62,8.70877315]
[1734247564344,2.1,217.69,217.64,6.41087315]
[1734247565543,2.1,217.69,217.64,8.70857315]
[1734247566147,2.2974,217.67,217.62,8.70867315]
[1734247566347,2.2974,217.67,217.62,6.41087315]
[1734247566648,2.1,217.69,217.62,6.41087315]
[1734247566845,2.2975,217.66,217.62,6.41087315]
[1734247569849,2.2975,217.66,217.61,7.78382873]
[1734247570052,2.2977,217.64,217.61,5.48592873]
[1734247570245,4.3977,217.64,217.61,5.48592873]
[1734247572851,4.3977,217.64,217.59,6.41087315]
[1734247572852,4.3978,217.64,217.59,6.41087315]
[1734247573654,4.3978,217.64,217.59,8.70907315]
[1734247574153,2.1,217.64,217.59,6.41087315]
[1734247574449,2.1,217.64,217.61,6.41087315]
[1734247574952,2.1,217.64,217.6,2.298]
[1734247575152,4.3977,217.64,217.6,2.298]
[1734247575351,2.1,217.64,217.59,11.92128484]
[1734247575562,2.1,217.64,217.59,5.51041169]
[1734247576548,2.2979,217.62,217.59,5.51041169]
[1734247576755,2.1,217.64,217.59,7.80861169]
[1734247578552,2.2978,217.63,217.59,7.80861169]
[1734247579353,2.1,217.64,217.59,5.51041169]
[1734247579561,2.1,217.64,217.61,2.298]
[1734247579955,2.1,217.64,217.6,6.41087315]
[1734247580558,2.1,217.64,217.62,2.2978]
[1734247580954,2.9072,217.72,217.62,6.41087315]
[1734247581156,2.1,217.71,217.65,2.2976]
[1734247581458,8.51087315,217.71,217.65,2.2976]
[1734247583151,2.1,217.7,217.65,2.2976]
[1734247583959,4.3971,217.7,217.63,2.2977]
[1734247584161,10.80797315,217.7,217.62,6.41087315]
[1734247585159,10.80797315,217.7,217.59,5.51041169]
[1734247585360,8.51087315,217.7,217.62,6.41087315]
[1734247585561,8.51087315,217.7,217.64,2.2976]
[1734247586160,8.51087315,217.7,217.65,2.2976]
[1734247587464,57.1103,217.89,217.68,6.41087315]
[1734247587665,8.51087315,217.76,217.68,6.41087315]
[1734247587962,8.51087315,217.76,217.7,6.41087315]
[1734247589665,8.51087315,217.76,217.72,2.2968]
[1734247589861,2.1,217.76,217.72,2.2968]
[1734247590062,2.1,217.79,217.72,6.41087315]
[1734247591570,2.1,217.79,217.75,2.2965]
[1734247591870,6.41087315,217.78,217.7,6.41087315]
[1734247592464,8.70717315,217.78,217.72,2.2968]
[1734247592662,6.41087315,217.78,217.7,6.41087315]
[1734247592866,2.1,217.77,217.72,6.41087315]
[1734247593068,2.1,217.79,217.72,6.41087315]
[1734247593271,6.41087315,217.8,217.72,6.41087315]
[1734247594067,6.41087315,217.8,217.76,2.2964]
[1734247594468,2.1,217.8,217.74,6.41087315]
[1734247594675,2.1,217.8,217.77,2.2963]
[1734247595069,2.1,217.81,217.76,6.41087315]
[1734247595273,2.1,217.81,217.78,2.2962]
[1734247595970,2.2955,217.86,217.76,6.41087315]
[1734247596174,2.1,217.85,217.78,6.41087315]
[1734247596773,2.1,217.85,217.8,2.296]
[1734247597172,2.1,217.85,217.78,6.41087315]
[1734247597375,2.1,217.85,217.81,2.2959]
[1734247598177,2.1,217.85,217.78,6.41087315]
[1734247598378,2.1,217.85,217.74,6.6006]
[1734247598379,2.1,217.85,217.82,2.2958]
[1734247600078,2.1,217.85,217.81,2.2959]
[1734247600280,2.1,217.85,217.74,6.6006]
[1734247600281,6.41087315,217.84,217.74,4.5006]
[1734247600477,6.41087315,217.82,217.74,4.5006]
[1734247600680,8.70677315,217.82,217.77,2.2963]
[1734247601281,6.41087315,217.82,217.78,2.2962]
[1734247602878,6.41087315,217.8,217.74,4.5006]
[1734247603076,6.41087315,217.8,217.73,5.58733364]
[1734247603077,8.70707315,217.78,217.73,5.58733364]
[1734247603384,10.80707315,217.78,217.73,5.58733364]
[1734247603877,10.80707315,217.78,217.69,6.41087315]
[1734247603878,6.41087315,217.76,217.69,6.41087315]
[1734247604079,6.41087315,217.76,217.7,2.297]
[1734247604675,2.2965,217.75,217.7,2.297]
[1734247605180,8.51087315,217.78,217.71,11.82088711]
[1734247605377,8.51087315,217.78,217.73,2.2967]
[1734247606682,10.80717315,217.78,217.73,2.2967]
[1734247607775,2.2963,217.77,217.71,14.11778711]
[1734247608178,2.2963,217.77,217.72,2.2968]
[1734247610980,6.41087315,217.74,217.66,2.8549]
[1734247611177,2.08,217.73,217.66,1.4052]
[1734247611385,2.08,217.73,217.67,6.41087315]
[1734247612081,2.2969,217.72,217.67,8.70827315]
[1734247612382,2.08,217.73,217.67,6.41087315]
[1734247612577,2.08,217.73,217.56,1.531]
[1734247612881,2.2971,217.7,217.66,6.41087315]
[1734247613083,2.08,217.69,217.65,2.2976]
[1734247613280,2.08,217.69,217.66,6.41087315]
[1734247613582,2.08,217.69,217.66,12.05416294]
[1734247614281,2.08,217.69,217.66,5.64328979]
[1734247617980,4.3772,217.69,217.66,6.41087315]
[1734247618385,2.08,217.69,217.66,6.41087315]
[1734247619280,2.08,217.7,217.68,6.41087315]
[1734247619479,4.3768,217.73,217.68,6.41087315]
[1734247620082,4.3768,217.73,217.68,8.70817315]
[1734247620282,2.2969,217.72,217.68,8.70817315]
[1734247620979,2.8754,217.87,217.7,6.41087315]
[1734247621181,6.41087315,217.79,217.72,6.41087315]
[1734247621388,2.08,217.78,217.72,6.41087315]
[1734247621678,2.08,217.78,217.74,2.2966]
[1734247622086,6.41087315,217.79,217.72,6.41087315]